bitfinex-derivatives/quotes_SOLF0:USTF0_20260118
["timestamp","ask_amount","ask_price","bid_price","bid_amount"]
[1768735641968,22.32306962,142.43,142.24,3.26152545]
[1768735642169,21.1,142.41,142.24,3.26152545]
[1768735642471,26.33281821,142.4,142.24,3.26152545]
[1768735642670,5.23281821,142.39,142.24,3.26152545]
[1768735642872,5.23281821,142.38,142.24,3.26152545]
[1768735643068,5.23281821,142.37,142.24,3.26152545]
[1768735643262,5.23281821,142.36,142.24,3.26152545]
[1768735643463,5.23281821,142.35,142.24,3.26152545]
[1768735643673,5.23281821,142.34,142.24,3.26152545]
[1768735643971,5.23281821,142.33,142.24,3.26152545]
[1768735644161,22.32306962,142.43,142.24,3.26152545]
[1768735644357,21.1,142.41,142.24,3.26152545]
[1768735644564,26.33020322,142.4,142.24,3.26152545]
[1768735644765,5.23020322,142.39,142.24,3.26152545]
[1768735644974,5.23020322,142.38,142.24,3.26152545]
[1768735645268,5.23020322,142.37,142.24,3.26152545]
[1768735645469,5.23020322,142.36,142.24,3.26152545]
[1768735645667,5.23020322,142.35,142.24,3.26152545]
[1768735645968,5.23020322,142.34,142.24,3.26152545]
[1768735646270,5.23020322,142.33,142.24,3.26152545]
[1768735646470,22.32306962,142.43,142.24,3.26152545]
[1768735646671,21.1,142.41,142.24,3.26152545]
[1768735646872,26.32995935,142.4,142.24,3.26152545]
[1768735647070,5.22995935,142.39,142.24,3.26152545]
[1768735647271,5.22995935,142.38,142.24,3.26152545]
[1768735647474,5.22995935,142.37,142.24,3.26152545]
[1768735647672,5.22995935,142.36,142.24,3.26152545]
[1768735647878,5.22995935,142.35,142.24,3.26152545]
[1768735648070,5.22995935,142.34,142.24,3.26152545]
[1768735648270,5.22995935,142.33,142.24,3.26152545]
[1768735648472,21.1,142.4,142.24,3.26152545]
[1768735648674,5.22969214,142.39,142.24,3.26152545]
[1768735648874,5.22969214,142.38,142.24,3.26152545]
[1768735649171,5.22969214,142.37,142.24,3.26152545]
[1768735649373,5.22969214,142.36,142.24,3.26152545]
[1768735649573,5.22969214,142.35,142.24,3.26152545]
[1768735649776,5.22969214,142.34,142.24,3.26152545]
[1768735649980,5.22969214,142.33,142.24,3.26152545]
[1768735650170,22.32306962,142.43,142.24,3.26152545]
[1768735650371,21.1,142.41,142.24,3.26152545]
[1768735650566,26.32937239,142.4,142.24,3.26152545]
[1768735650775,5.22937239,142.39,142.24,3.26152545]
[1768735650976,5.22937239,142.38,142.24,3.26152545]
[1768735651171,5.22937239,142.37,142.24,3.26152545]
[1768735651368,5.22937239,142.36,142.24,3.26152545]
[1768735651573,5.22937239,142.35,142.24,3.26152545]
[1768735651773,5.22937239,142.34,142.24,3.26152545]
[1768735651972,5.22937239,142.33,142.24,3.26152545]
[1768735652276,21.1,142.39,142.24,3.26152545]
[1768735652479,26.32767991,142.38,142.24,3.26152545]
[1768735652678,5.22767991,142.37,142.24,3.26152545]
[1768735652872,5.22767991,142.36,142.24,3.26152545]
[1768735653072,5.22767991,142.35,142.24,3.26152545]
[1768735653271,5.22767991,142.34,142.24,3.26152545]
[1768735653473,21.1,142.38,142.24,3.26152545]
[1768735653474,5.22767991,142.33,142.24,3.26152545]
[1768735653675,21.1,142.4,142.24,3.26152545]
[1768735653877,21.1,142.38,142.24,3.26152545]
[1768735654076,5.22807083,142.37,142.24,3.26152545]
[1768735654374,5.22807083,142.36,142.24,3.26152545]
[1768735654580,5.22807083,142.35,142.24,3.26152545]
[1768735654779,5.22807083,142.34,142.24,3.26152545]
[1768735654980,5.22807083,142.33,142.24,3.26152545]
[1768735655181,21.1,142.4,142.24,3.26152545]
[1768735655479,21.1,142.38,142.24,3.26152545]
[1768735655679,5.2284225,142.37,142.24,3.26152545]
[1768735655880,5.2284225,142.36,142.24,3.26152545]
[1768735656179,5.2284225,142.35,142.24,3.26152545]
[1768735656481,5.2284225,142.34,142.24,3.26152545]
[1768735656683,5.2284225,142.33,142.24,3.26152545]
[1768735656876,21.1,142.4,142.24,3.26152545]
[1768735657078,21.1,142.38,142.24,3.26152545]
[1768735657277,5.2285508,142.37,142.24,3.26152545]
[1768735657578,5.2285508,142.36,142.24,3.26152545]
[1768735657773,5.2285508,142.35,142.24,3.26152545]
[1768735657977,5.2285508,142.34,142.24,3.26152545]
[1768735658277,5.2285508,142.33,142.24,3.26152545]
[1768735658479,21.1,142.42,142.24,3.26152545]
[1768735658678,21.1,142.4,142.24,3.26152545]
[1768735658876,26.32859188,142.39,142.24,3.26152545]
[1768735659081,5.22859188,142.38,142.24,3.26152545]
[1768735659280,5.22859188,142.37,142.24,3.26152545]
[1768735659480,5.22859188,142.36,142.24,3.26152545]
[1768735659682,5.22859188,142.35,142.24,3.26152545]
[1768735659975,5.22859188,142.34,142.24,3.26152545]
[1768735660284,5.22859188,142.33,142.24,3.26152545]
[1768735660484,21.1,142.4,142.24,3.26152545]
[1768735660782,26.32877231,142.39,142.24,3.26152545]
[1768735660984,5.22877231,142.38,142.24,3.26152545]
[1768735661181,5.22877231,142.37,142.24,3.26152545]
[1768735661382,5.22877231,142.36,142.24,3.26152545]
[1768735661584,5.22877231,142.35,142.24,3.26152545]
[1768735661786,5.22877231,142.34,142.24,3.26152545]
[1768735661980,5.22877231,142.33,142.24,3.26152545]
[1768735662181,21.1,142.4,142.24,3.26152545]
[1768735662382,26.32889177,142.39,142.24,3.26152545]
[1768735662582,5.22889177,142.38,142.24,3.26152545]
[1768735662785,5.22889177,142.37,142.24,3.26152545]
[1768735662986,5.22889177,142.36,142.24,3.26152545]
[1768735663285,5.22889177,142.35,142.24,3.26152545]
[1768735663486,5.22889177,142.34,142.24,3.26152545]
[1768735663687,5.22889177,142.33,142.24,3.26152545]
[1768735663881,5.22889177,142.32,142.24,3.26152545]
[1768735664082,21.1,142.39,142.24,3.26152545]
[1768735664283,5.22912683,142.38,142.24,3.26152545]
[1768735664483,5.22912683,142.37,142.24,3.26152545]
[1768735664683,5.22912683,142.36,142.24,3.26152545]
[1768735664978,5.22912683,142.35,142.24,3.26152545]
[1768735665183,5.22912683,142.34,142.24,3.26152545]
[1768735665388,5.22912683,142.33,142.24,3.26152545]
[1768735665587,5.22912683,142.32,142.24,3.26152545]
[1768735665788,21.1,142.39,142.24,3.26152545]
[1768735666087,5.22934724,142.38,142.24,3.26152545]
[1768735666389,5.22934724,142.37,142.24,3.26152545]
[1768735666584,5.22934724,142.36,142.24,3.26152545]
[1768735666785,5.22934724,142.35,142.24,3.26152545]
[1768735666986,5.22934724,142.34,142.24,3.26152545]
[1768735667188,5.22934724,142.33,142.24,3.26152545]
[1768735667378,5.22934724,142.32,142.24,3.26152545]
[1768735667583,21.1,142.39,142.24,3.26152545]
[1768735667880,5.22963522,142.38,142.24,3.26152545]
[1768735668082,5.22963522,142.37,142.24,3.26152545]
[1768735668282,5.22963522,142.36,142.24,3.26152545]
[1768735668583,5.22963522,142.35,142.24,3.26152545]
[1768735668788,5.22963522,142.34,142.24,3.26152545]
[1768735668979,5.22963522,142.33,142.24,3.26152545]
[1768735669184,5.22963522,142.32,142.24,3.26152545]
[1768735669489,21.1,142.39,142.24,3.26152545]
[1768735669691,5.22995359,142.38,142.24,3.26152545]
[1768735669986,5.22995359,142.37,142.24,3.26152545]
[1768735670189,5.22995359,142.36,142.24,3.26152545]
[1768735670384,5.22995359,142.35,142.24,3.26152545]
[1768735670587,5.22995359,142.34,142.24,3.26152545]
[1768735670785,5.22995359,142.33,142.24,3.26152545]
[1768735670990,5.22995359,142.32,142.24,3.26152545]
[1768735671189,21.1,142.41,142.24,3.26152545]
[1768735671190,5.22995359,142.31,142.24,3.26152545]
[1768735671389,21.1,142.41,142.24,3.26152545]
[1768735671689,21.1,142.39,142.24,3.26152545]
[1768735671892,5.22931967,142.38,142.24,3.26152545]
[1768735672087,5.22931967,142.37,142.24,3.26152545]
[1768735672286,5.22931967,142.36,142.24,3.26152545]
[1768735672487,5.22931967,142.35,142.24,3.26152545]
[1768735672784,5.22931967,142.34,142.24,3.26152545]
[1768735672987,5.22931967,142.33,142.24,3.26152545]
[1768735673198,5.22931967,142.32,142.24,3.26152545]
[1768735673394,5.22931967,142.31,142.24,3.26152545]
[1768735673586,21.1,142.41,142.24,3.26152545]
[1768735673787,21.1,142.39,142.24,3.26152545]
[1768735674084,5.22915133,142.38,142.24,3.26152545]
[1768735674292,5.22915133,142.37,142.24,3.26152545]
[1768735674484,5.22915133,142.36,142.24,3.26152545]
[1768735674691,5.22915133,142.35,142.24,3.26152545]
[1768735674991,5.22915133,142.34,142.24,3.26152545]
[1768735675192,5.22915133,142.33,142.24,3.26152545]
[1768735675382,5.22915133,142.32,142.24,3.26152545]
[1768735675580,5.22915133,142.31,142.24,3.26152545]
[1768735675786,21.1,142.39,142.24,3.26152545]
[1768735675989,5.22938164,142.38,142.24,3.26152545]
[1768735676181,5.22938164,142.37,142.24,3.26152545]
[1768735676385,5.22938164,142.36,142.24,3.26152545]
[1768735676593,21.1,142.39,142.24,3.26152545]
[1768735676594,5.22938164,142.35,142.24,3.26152545]
[1768735676794,5.22938164,142.34,142.24,3.26152545]
[1768735676994,5.22938164,142.33,142.24,3.26152545]
[1768735677293,5.22938164,142.32,142.24,3.26152545]
[1768735677494,5.22938164,142.31,142.24,3.26152545]
[1768735677693,21.1,142.41,142.24,3.26152545]
[1768735677994,21.1,142.39,142.24,3.26152545]
[1768735678294,5.22925093,142.38,142.24,3.26152545]
[1768735678494,5.22925093,142.37,142.24,3.26152545]
[1768735678693,5.22925093,142.36,142.24,3.26152545]
[1768735678883,5.22925093,142.35,142.24,3.26152545]
[1768735679083,5.22925093,142.34,142.24,3.26152545]
[1768735679292,5.22925093,142.33,142.24,3.26152545]
[1768735679491,5.22925093,142.32,142.24,3.26152545]
[1768735679692,5.22925093,142.31,142.24,3.26152545]
[1768735679895,21.1,142.41,142.24,3.26152545]
[1768735680087,21.1,142.39,142.24,3.26152545]
[1768735680287,5.22912336,142.38,142.24,3.26152545]
[1768735680495,5.22912336,142.37,142.24,3.26152545]
[1768735680700,5.22912336,142.36,142.24,3.26152545]
[1768735680898,5.22912336,142.35,142.24,3.26152545]
[1768735681092,5.22912336,142.34,142.24,3.26152545]
[1768735681289,5.22912336,142.33,142.24,3.26152545]
[1768735681489,5.22912336,142.32,142.24,3.26152545]
[1768735681690,5.22912336,142.31,142.24,3.26152545]
[1768735681890,21.1,142.41,142.24,3.26152545]
[1768735682090,21.1,142.39,142.24,3.26152545]
[1768735682293,5.22932611,142.38,142.24,3.26152545]
[1768735682496,5.22932611,142.37,142.24,3.26152545]
[1768735682697,5.22932611,142.36,142.24,3.26152545]
[1768735682892,5.22932611,142.35,142.24,3.26152545]
[1768735683093,5.22932611,142.34,142.24,3.26152545]
[1768735683291,17.52668027,142.42,142.24,3.26152545]
[1768735683292,5.22932611,142.33,142.24,3.26152545]
[1768735683495,5.22932611,142.32,142.24,3.26152545]
[1768735683690,5.22932611,142.31,142.24,3.26152545]
[1768735683891,38.62668027,142.41,142.24,3.26152545]
[1768735684190,21.1,142.39,142.24,3.26152545]
[1768735684397,21.1,142.37,142.24,3.26152545]
[1768735684599,5.22856245,142.36,142.24,3.26152545]
[1768735684798,5.22856245,142.35,142.24,3.26152545]
[1768735684998,5.22856245,142.34,142.24,3.26152545]
[1768735685200,5.22856245,142.33,142.24,3.26152545]
[1768735685398,5.22856245,142.32,142.24,3.26152545]
[1768735685598,5.22856245,142.31,142.24,3.26152545]
[1768735685804,21.1,142.4,142.24,3.26152545]
[1768735685997,21.1,142.38,142.24,3.26152545]
[1768735686197,26.32776695,142.37,142.24,3.26152545]
[1768735686501,5.22776695,142.36,142.24,3.26152545]
[1768735686700,5.22776695,142.35,142.24,3.26152545]
[1768735686901,5.22776695,142.34,142.24,3.26152545]
[1768735687202,5.22776695,142.33,142.24,3.26152545]
[1768735687401,5.22776695,142.32,142.24,3.26152545]
[1768735687596,5.22776695,142.31,142.24,3.26152545]
[1768735687796,21.1,142.4,142.24,3.26152545]
[1768735687992,21.1,142.38,142.24,3.26152545]
[1768735688192,26.32726314,142.37,142.24,3.26152545]
[1768735688498,5.22726314,142.36,142.24,3.26152545]
[1768735688796,5.22726314,142.35,142.24,3.26152545]
[1768735688997,5.22726314,142.34,142.24,3.26152545]
[1768735689196,5.22726314,142.33,142.24,3.26152545]
[1768735689399,5.22726314,142.32,142.24,3.26152545]
[1768735689599,5.22726314,142.31,142.24,3.26152545]
[1768735689800,5.22726314,142.3,142.24,3.26152545]
[1768735689995,21.1,142.4,142.24,3.26152545]
[1768735690294,21.1,142.38,142.24,3.26152545]
[1768735690494,26.32643874,142.37,142.24,3.26152545]
[1768735690690,5.22643874,142.36,142.24,3.26152545]
[1768735690892,5.22643874,142.35,142.24,3.26152545]
[1768735691104,5.22643874,142.34,142.24,3.26152545]
[1768735691303,5.22643874,142.33,142.24,3.26152545]
[1768735691604,5.22643874,142.32,142.24,3.26152545]
[1768735691799,5.22643874,142.31,142.24,3.26152545]
[1768735692099,5.22643874,142.3,142.24,3.26152545]
[1768735692298,21.1,142.4,142.24,3.26152545]
[1768735692492,21.1,142.38,142.24,3.26152545]
[1768735692699,26.3260672,142.37,142.24,3.26152545]
[1768735693002,5.2260672,142.36,142.24,3.26152545]
[1768735693206,5.2260672,142.35,142.24,3.26152545]
[1768735693404,5.2260672,142.34,142.24,3.26152545]
[1768735693704,5.2260672,142.33,142.24,3.26152545]
[1768735693905,5.2260672,142.32,142.24,3.26152545]
[1768735694106,5.2260672,142.31,142.24,3.26152545]
[1768735694301,5.2260672,142.3,142.24,3.26152545]
[1768735694502,21.1,142.38,142.24,3.26152545]
[1768735694700,26.32609844,142.37,142.24,3.26152545]
[1768735695001,5.22609844,142.36,142.24,3.26152545]
[1768735695202,5.22609844,142.35,142.24,3.26152545]
[1768735695400,5.22609844,142.34,142.24,3.26152545]
[1768735695707,5.22609844,142.33,142.24,3.26152545]
[1768735695900,5.22609844,142.32,142.24,3.26152545]
[1768735696102,5.22609844,142.31,142.24,3.26152545]
[1768735696303,5.22609844,142.3,142.24,3.26152545]
[1768735696502,21.1,142.38,142.24,3.26152545]
[1768735696706,26.32641413,142.37,142.24,3.26152545]
[1768735696899,5.22641413,142.36,142.24,3.26152545]
[1768735697104,5.22641413,142.35,142.24,3.26152545]
[1768735697304,5.22641413,142.34,142.24,3.26152545]
[1768735697504,5.22641413,142.33,142.24,3.26152545]
[1768735697707,5.22641413,142.32,142.24,3.26152545]
[1768735697908,5.22641413,142.31,142.24,3.26152545]
[1768735698103,5.22641413,142.3,142.24,3.26152545]
[1768735698304,21.1,142.4,142.24,3.26152545]
[1768735698507,21.1,142.38,142.24,3.26152545]
[1768735698708,26.32624923,142.37,142.24,3.26152545]
[1768735698907,5.22624923,142.36,142.24,3.26152545]
[1768735699103,5.22624923,142.35,142.24,3.26152545]
[1768735699307,5.22624923,142.34,142.24,3.26152545]
[1768735699606,5.22624923,142.33,142.24,3.26152545]
[1768735699806,5.22624923,142.32,142.24,3.26152545]
[1768735700007,5.22624923,142.31,142.24,3.26152545]
[1768735700210,5.22624923,142.3,142.24,3.26152545]
[1768735700410,1.22319859,142.39,142.24,3.26152545]
[1768735700611,21.1,142.37,142.24,3.26152545]
[1768735700809,5.22623998,142.36,142.24,3.26152545]
[1768735701010,5.22623998,142.35,142.24,3.26152545]
[1768735701211,5.22623998,142.34,142.24,3.26152545]
[1768735701512,5.22623998,142.33,142.24,3.26152545]
[1768735701809,5.22623998,142.32,142.24,3.26152545]
[1768735702010,5.22623998,142.31,142.24,3.26152545]
[1768735702210,5.22623998,142.3,142.24,3.26152545]
[1768735702411,21.1,142.37,142.24,3.26152545]
[1768735702710,5.22636554,142.36,142.24,3.26152545]
[1768735702911,5.22636554,142.35,142.24,3.26152545]
[1768735703113,5.22636554,142.34,142.24,3.26152545]
[1768735703411,5.22636554,142.33,142.24,3.26152545]
[1768735703711,5.22636554,142.32,142.24,3.26152545]
[1768735703911,5.22636554,142.31,142.24,3.26152545]
[1768735704115,21.1,142.37,142.24,3.26152545]
[1768735704414,5.22653547,142.36,142.24,3.26152545]
[1768735704611,5.22653547,142.35,142.24,3.26152545]
[1768735704815,5.22653547,142.34,142.24,3.26152545]
[1768735705113,5.22653547,142.33,142.24,3.26152545]
[1768735705315,5.22653547,142.32,142.24,3.26152545]
[1768735705514,5.22653547,142.31,142.24,3.26152545]
[1768735705716,5.22653547,142.3,142.24,3.26152545]
[1768735706015,21.1,142.37,142.24,3.26152545]
[1768735706214,5.22874631,142.36,142.24,3.26152545]
[1768735706414,5.22874631,142.35,142.24,3.26152545]
[1768735706616,5.22874631,142.34,142.24,3.26152545]
[1768735706810,5.22874631,142.33,142.24,3.26152545]
[1768735707015,5.22874631,142.32,142.24,3.26152545]
[1768735707217,5.22874631,142.31,142.24,3.26152545]
[1768735707416,21.1,142.37,142.24,3.26152545]
[1768735707615,5.22934544,142.36,142.24,3.26152545]
[1768735707916,5.22934544,142.35,142.24,3.26152545]
[1768735708117,5.22934544,142.34,142.24,3.26152545]
[1768735708416,5.22934544,142.33,142.24,3.26152545]
[1768735708616,5.22934544,142.32,142.24,3.26152545]
[1768735708811,1.22319859,142.39,142.24,3.26152545]
[1768735708812,5.22934544,142.31,142.24,3.26152545]
[1768735709007,21.1,142.37,142.24,3.26152545]
[1768735709213,5.22971314,142.36,142.24,3.26152545]
[1768735709413,5.22971314,142.35,142.24,3.26152545]
[1768735709614,5.22971314,142.34,142.24,3.26152545]
[1768735709816,5.22971314,142.33,142.24,3.26152545]
[1768735710113,5.22971314,142.32,142.24,3.26152545]
[1768735710314,5.22971314,142.31,142.24,3.26152545]
[1768735710517,5.22971314,142.3,142.24,3.26152545]
[1768735710722,21.1,142.37,142.24,3.26152545]
[1768735710919,5.23059437,142.36,142.24,3.26152545]
[1768735711118,5.23059437,142.35,142.24,3.26152545]
[1768735711316,5.23059437,142.34,142.24,3.26152545]
[1768735711513,5.23059437,142.33,142.24,3.26152545]
[1768735711711,5.23059437,142.32,142.24,3.26152545]
[1768735711920,5.23059437,142.31,142.24,3.26152545]
[1768735712215,5.23059437,142.3,142.24,3.26152545]
[1768735712523,21.1,142.37,142.24,3.26152545]
[1768735712724,5.23173226,142.36,142.24,3.26152545]
[1768735712920,5.23173226,142.35,142.24,3.26152545]
[1768735713216,5.23173226,142.34,142.24,3.26152545]
[1768735713417,5.23173226,142.33,142.24,3.26152545]
[1768735713615,5.23173226,142.32,142.24,3.26152545]
[1768735713815,5.23173226,142.31,142.24,3.26152545]
[1768735714016,5.23173226,142.3,142.24,3.26152545]
[1768735714217,21.1,142.37,142.24,3.26152545]
[1768735714513,5.23244295,142.36,142.24,3.26152545]
[1768735714716,5.23244295,142.35,142.24,3.26152545]
[1768735715018,5.23244295,142.34,142.24,3.26152545]
[1768735715214,5.23244295,142.33,142.24,3.26152545]
[1768735715424,5.23244295,142.32,142.24,3.26152545]
[1768735715624,5.23244295,142.31,142.24,3.26152545]
[1768735715827,5.23244295,142.3,142.24,3.26152545]
[1768735716027,21.1,142.37,142.24,3.26152545]
[1768735716326,5.23327431,142.36,142.24,3.26152545]
[1768735716520,5.23327431,142.35,142.24,3.26152545]
[1768735716721,5.23327431,142.34,142.24,3.26152545]
[1768735716920,5.23327431,142.33,142.24,3.26152545]
[1768735717121,5.23327431,142.32,142.24,3.26152545]
[1768735717322,5.23327431,142.31,142.24,3.26152545]
[1768735717622,5.23327431,142.3,142.24,3.26152545]
[1768735717822,21.1,142.37,142.24,3.26152545]
[1768735718024,5.23355833,142.36,142.24,3.26152545]
[1768735718321,5.23355833,142.35,142.24,3.26152545]
[1768735718523,5.23355833,142.34,142.24,3.26152545]
[1768735718725,5.23355833,142.33,142.24,3.26152545]
[1768735718926,5.23355833,142.32,142.24,3.26152545]
[1768735719126,5.23355833,142.31,142.24,3.26152545]
[1768735719327,5.23355833,142.3,142.24,3.26152545]
[1768735719527,21.1,142.37,142.24,3.26152545]
[1768735719824,5.23391488,142.36,142.24,3.26152545]
[1768735720025,5.23391488,142.35,142.24,3.26152545]
[1768735720324,5.23391488,142.34,142.24,3.26152545]
[1768735720525,5.23391488,142.33,142.24,3.26152545]
[1768735720726,5.23391488,142.32,142.24,3.26152545]
[1768735720926,5.23391488,142.31,142.24,3.26152545]
[1768735721121,5.23391488,142.3,142.24,3.26152545]
[1768735721328,21.1,142.37,142.24,3.26152545]
[1768735721628,5.23437068,142.36,142.24,3.26152545]
[1768735721828,5.23437068,142.35,142.24,3.26152545]
[1768735722029,5.23437068,142.34,142.24,3.26152545]
[1768735722326,5.23437068,142.33,142.24,3.26152545]
[1768735722529,5.23437068,142.32,142.24,3.26152545]
[1768735722731,22.32319859,142.39,142.24,3.26152545]
[1768735722732,5.23437068,142.31,142.24,3.26152545]
[1768735723029,5.23437068,142.3,142.24,3.26152545]
[1768735723327,21.1,142.37,142.24,3.26152545]
[1768735723628,5.23498381,142.36,142.24,3.26152545]
[1768735723826,5.23498381,142.35,142.24,3.26152545]
[1768735724019,5.23498381,142.34,142.24,3.26152545]
[1768735724223,5.23498381,142.33,142.24,3.26152545]
[1768735724424,5.23498381,142.32,142.24,3.26152545]
[1768735724620,5.23498381,142.31,142.24,3.26152545]
[1768735724820,5.23498381,142.3,142.24,3.26152545]
[1768735725025,5.23498381,142.29,142.24,3.26152545]
[1768735725232,21.1,142.37,142.24,3.26152545]
[1768735725428,5.23526695,142.36,142.24,3.26152545]
[1768735725628,5.23526695,142.35,142.24,3.26152545]
[1768735725924,5.23526695,142.34,142.24,3.26152545]
[1768735726126,5.23526695,142.33,142.24,3.26152545]
[1768735726324,5.23526695,142.32,142.24,3.26152545]
[1768735726527,5.23526695,142.31,142.24,3.26152545]
[1768735726727,5.23526695,142.3,142.24,3.26152545]
[1768735726928,5.23526695,142.29,142.24,3.26152545]
[1768735727129,21.1,142.37,142.24,3.26152545]
[1768735727429,5.23629163,142.36,142.24,3.26152545]
[1768735727629,5.23629163,142.35,142.24,3.26152545]
[1768735727822,5.23629163,142.34,142.24,3.26152545]
[1768735728025,5.23629163,142.33,142.24,3.26152545]
[1768735728229,5.23629163,142.32,142.24,3.26152545]
[1768735728420,5.23629163,142.31,142.24,3.26152545]
[1768735728625,5.23629163,142.3,142.24,3.26152545]
[1768735728824,5.23629163,142.29,142.24,3.26152545]
[1768735729023,21.1,142.37,142.24,3.26152545]
[1768735729226,26.33698897,142.36,142.24,3.26152545]
[1768735729427,5.23698897,142.35,142.24,3.26152545]
[1768735729636,5.23698897,142.34,142.24,3.26152545]
[1768735729836,5.23698897,142.33,142.24,3.26152545]
[1768735730135,5.23698897,142.32,142.24,3.26152545]
[1768735730329,5.23698897,142.31,142.24,3.26152545]
[1768735730628,5.23698897,142.3,142.24,3.26152545]
[1768735730829,5.23698897,142.29,142.24,3.26152545]
[1768735731030,21.1,142.37,142.24,3.26152545]
[1768735731230,26.33703215,142.36,142.24,3.26152545]
[1768735731431,5.23703215,142.35,142.24,3.26152545]
[1768735731726,5.23703215,142.34,142.24,3.26152545]
[1768735731927,5.23703215,142.33,142.24,3.26152545]
[1768735732126,5.23703215,142.32,142.24,3.26152545]
[1768735732330,5.23703215,142.31,142.24,3.26152545]
[1768735732531,5.23703215,142.3,142.24,3.26152545]
[1768735732736,5.23703215,142.29,142.24,3.26152545]
[1768735732933,21.1,142.37,142.24,3.26152545]
[1768735733133,26.33711224,142.36,142.24,3.26152545]
[1768735733433,5.23711224,142.35,142.24,3.26152545]
[1768735733633,5.23711224,142.34,142.24,3.26152545]
[1768735733835,5.23711224,142.33,142.24,3.26152545]
[1768735734035,5.23711224,142.32,142.24,3.26152545]
[1768735734233,22.32319859,142.39,142.24,3.26152545]
[1768735734432,21.1,142.37,142.24,3.26152545]
[1768735734635,26.3368718,142.36,142.24,3.26152545]
[1768735734837,5.2368718,142.35,142.24,3.26152545]
[1768735735037,5.2368718,142.34,142.24,3.26152545]
[1768735735233,5.2368718,142.33,142.24,3.26152545]
[1768735735429,5.2368718,142.32,142.24,3.26152545]
[1768735735637,5.2368718,142.31,142.24,3.26152545]
[1768735735838,5.2368718,142.3,142.24,3.26152545]
[1768735736038,5.2368718,142.29,142.24,3.26152545]
[1768735736230,22.32319859,142.39,142.24,3.26152545]
[1768735736437,21.1,142.37,142.24,3.26152545]
[1768735736636,26.33608095,142.36,142.24,3.26152545]
[1768735736831,5.23608095,142.35,142.24,3.26152545]
[1768735737037,5.23608095,142.34,142.24,3.26152545]
[1768735737237,5.23608095,142.33,142.24,3.26152545]
[1768735737435,5.23608095,142.32,142.24,3.26152545]
[1768735737637,5.23608095,142.31,142.24,3.26152545]
[1768735737838,5.23608095,142.3,142.24,3.26152545]
[1768735738039,5.23608095,142.29,142.24,3.26152545]
[1768735738241,22.32319859,142.39,142.24,3.26152545]
[1768735738441,21.1,142.37,142.24,3.26152545]
[1768735738642,26.33584861,142.36,142.24,3.26152545]
[1768735738842,5.23584861,142.35,142.24,3.26152545]
[1768735739044,5.23584861,142.34,142.24,3.26152545]
[1768735739247,5.23584861,142.33,142.24,3.26152545]
[1768735739546,5.23584861,142.32,142.24,3.26152545]
[1768735739745,5.23584861,142.31,142.24,3.26152545]
[1768735740045,5.23584861,142.3,142.24,3.26152545]
[1768735740251,5.23584861,142.29,142.24,3.26152545]
[1768735740447,22.32319859,142.39,142.24,3.26152545]
[1768735740648,21.1,142.37,142.24,3.26152545]
[1768735740852,26.33572046,142.36,142.24,3.26152545]
[1768735741050,5.23572046,142.35,142.24,3.26152545]
[1768735741248,5.23572046,142.34,142.24,3.26152545]
[1768735741552,5.23572046,142.33,142.24,3.26152545]
[1768735741751,21.1,142.36,142.24,3.26152545]
[1768735741752,5.23572046,142.32,142.24,3.26152545]
[1768735741953,5.23572046,142.31,142.24,3.26152545]
[1768735742153,5.23572046,142.3,142.24,3.26152545]
[1768735742355,5.23572046,142.29,142.24,3.26152545]
[1768735742556,22.32319859,142.39,142.24,3.26152545]
[1768735742748,21.1,142.37,142.24,3.26152545]
[1768735742948,26.33566269,142.36,142.24,3.26152545]
[1768735743144,5.23566269,142.35,142.24,3.26152545]
[1768735743355,5.23566269,142.34,142.24,3.26152545]
[1768735743557,5.23566269,142.33,142.24,3.26152545]
[1768735743751,5.23566269,142.32,142.24,3.26152545]
[1768735743951,5.23566269,142.31,142.24,3.26152545]
[1768735744152,5.23566269,142.3,142.24,3.26152545]
[1768735744352,5.23566269,142.29,142.24,3.26152545]
[1768735744552,22.32319859,142.39,142.24,3.26152545]
[1768735744755,21.1,142.37,142.24,3.26152545]
[1768735744952,26.33551318,142.36,142.24,3.26152545]
[1768735745155,5.23551318,142.35,142.24,3.26152545]
[1768735745355,5.23551318,142.34,142.24,3.26152545]
[1768735745555,5.23551318,142.33,142.24,3.26152545]
[1768735745757,5.23551318,142.32,142.24,3.26152545]
[1768735745957,5.23551318,142.31,142.24,3.26152545]
[1768735746259,5.23551318,142.3,142.24,3.26152545]
[1768735746460,5.23551318,142.29,142.24,3.26152545]
[1768735746656,22.32319859,142.39,142.24,3.26152545]
[1768735746856,21.1,142.37,142.24,3.26152545]
[1768735747153,26.33538772,142.36,142.24,3.26152545]
[1768735747358,5.23538772,142.35,142.24,3.26152545]
[1768735747557,5.23538772,142.34,142.24,3.26152545]
[1768735747756,5.23538772,142.33,142.24,3.26152545]
[1768735747959,5.23538772,142.32,142.24,3.26152545]
[1768735748255,5.23538772,142.31,142.24,3.26152545]
[1768735748463,5.23538772,142.3,142.24,3.26152545]
[1768735748659,5.23538772,142.29,142.24,3.26152545]